[Event "Titled Tuesday Blitz March 28 Late 2023"]
[White "Rastbod, Ali"]
[Black "Skibbe, Willi"]
[WhiteFideId "12567477"]
[BlackFideId "4682190"]
[WhiteElo "2211"]
[BlackElo "2319"]
[Result "1-0"]
[Round "03"]
[TimeControl "180+2"]
[Date "2023.03.28"]
[WhiteClock "0:00:33"]
[BlackClock "0:00:09"]

1. e4 {[%clk 0:03:00]}  e6 {[%clk 0:02:32]} 2. d4 {[%clk 0:03:00]}  d5 {[%clk 0:02:31]} 3. Bd3 {[%clk 0:03:00]}  c5 {[%clk 0:02:29]} 4. exd5 {[%clk 0:03:01]}  Qxd5 {[%clk 0:02:29]} 5. Nc3 {[%clk 0:02:49]}  Qxd4 {[%clk 0:02:06]} 6. Nf3 {[%clk 0:02:48]}  Qd8 {[%clk 0:02:04]} 7. Bf4 {[%clk 0:02:48]}  a6 {[%clk 0:02:03]} 8. Qe2 {[%clk 0:02:44]}  Nf6 {[%clk 0:01:58]} 9. O-O-O {[%clk 0:02:39]}  Qa5 {[%clk 0:01:58]} 10. Ne5 {[%clk 0:02:24]}  Nbd7 {[%clk 0:01:50]} 11. Nc4 {[%clk 0:02:18]}  Qd8 {[%clk 0:01:44]} 12. Nd6+ {[%clk 0:01:57]}  Bxd6 {[%clk 0:01:43]} 13. Bxd6 {[%clk 0:01:58]}  b5 {[%clk 0:01:40]} 14. Bxb5 {[%clk 0:01:55]}  axb5 {[%clk 0:01:37]} 15. Nxb5 {[%clk 0:01:56]}  Qa5 {[%clk 0:01:12]} 16. Nc7+ {[%clk 0:01:53]}  Kd8 {[%clk 0:01:12]} 17. Nxa8 {[%clk 0:01:43]}  Qxa8 {[%clk 0:01:13]} 18. Kb1 {[%clk 0:01:37]}  Bb7 {[%clk 0:01:11]} 19. f3 {[%clk 0:01:34]}  Nd5 {[%clk 0:01:06]} 20. c4 {[%clk 0:01:29]}  Nb4 {[%clk 0:01:00]} 21. a3 {[%clk 0:01:26]}  Na6 {[%clk 0:00:59]} 22. Qd2 {[%clk 0:01:22]}  Bc6 {[%clk 0:00:58]} 23. Qg5+ {[%clk 0:01:19]}  f6 {[%clk 0:00:48]} 24. Qxg7 {[%clk 0:01:18]}  Re8 {[%clk 0:00:49]} 25. Rhe1 {[%clk 0:01:13]}  Kc8 {[%clk 0:00:46]} 26. Qf7 {[%clk 0:01:09]}  Kb7 {[%clk 0:00:43]} 27. Bg3 {[%clk 0:01:06]}  Qc8 {[%clk 0:00:33]} 28. Rxe6 {[%clk 0:01:02]}  Rxe6 {[%clk 0:00:32]} 29. Qxe6 {[%clk 0:01:03]}  Nc7 {[%clk 0:00:30]} 30. Qd6 {[%clk 0:00:58]}  Ne8 {[%clk 0:00:27]} 31. Qd3 {[%clk 0:00:54]}  h5 {[%clk 0:00:23]} 32. Qb3+ {[%clk 0:00:54]}  Ka7 {[%clk 0:00:20]} 33. Qc3 {[%clk 0:00:54]}  Ka6 {[%clk 0:00:16]} 34. Be1 {[%clk 0:00:52]}  Qc7 {[%clk 0:00:15]} 35. Ka2 {[%clk 0:00:53]}  Qxh2 {[%clk 0:00:15]} 36. Qa5+ {[%clk 0:00:52]}  Kb7 {[%clk 0:00:16]} 37. Rd3 {[%clk 0:00:53]}  Nc7 {[%clk 0:00:16]} 38. Qd2 {[%clk 0:00:45]}  Ne5 {[%clk 0:00:12]} 39. Rb3+ {[%clk 0:00:45]}  Kc8 {[%clk 0:00:12]} 40. Qd6 {[%clk 0:00:37]}  Qxg2 {[%clk 0:00:10]} 41. Ba5 {[%clk 0:00:37]}  Ne8 {[%clk 0:00:09]} 42. Qd8# {[%clk 0:00:33]} 1-0


[Site "https://www.chess.com"]

[Event "Titled Tuesday Blitz March 28 Late 2023"]
[White "Sivakumar, Shaaketh"]
[Black "Smith, Garrett L"]
[WhiteFideId "30940176"]
[BlackFideId "2024829"]
[WhiteElo "2174"]
[BlackElo "2312"]
[Result "0-1"]
[Round "03"]
[TimeControl "180+2"]
[Date "2023.03.28"]
[WhiteClock "0:01:21"]
[BlackClock "0:00:26"]

1. e4 {[%clk 0:03:00]}  c5 {[%clk 0:03:00]} 2. Nf3 {[%clk 0:03:00]}  Nc6 {[%clk 0:03:00]} 3. g3 {[%clk 0:03:00]}  e5 {[%clk 0:02:59]} 4. Bg2 {[%clk 0:03:00]}  Nf6 {[%clk 0:02:59]} 5. Nc3 {[%clk 0:02:58]}  Be7 {[%clk 0:02:59]} 6. O-O {[%clk 0:02:58]}  d6 {[%clk 0:02:59]} 7. d3 {[%clk 0:02:57]}  h6 {[%clk 0:02:59]} 8. Ne1 {[%clk 0:02:56]}  O-O {[%clk 0:02:59]} 9. f4 {[%clk 0:02:56]}  Bg4 {[%clk 0:02:56]} 10. Qd2 {[%clk 0:02:52]}  Nd4 {[%clk 0:02:32]} 11. h3 {[%clk 0:02:43]}  Bd7 {[%clk 0:02:29]} 12. f5 {[%clk 0:02:34]}  b5 {[%clk 0:02:28]} 13. g4 {[%clk 0:02:31]}  b4 {[%clk 0:02:28]} 14. Ne2 {[%clk 0:02:31]}  Bc6 {[%clk 0:02:25]} 15. c4 {[%clk 0:02:30]}  bxc3 {[%clk 0:02:21]} 16. bxc3 {[%clk 0:02:30]}  Nxe2+ {[%clk 0:02:20]} 17. Qxe2 {[%clk 0:02:31]}  d5 {[%clk 0:02:15]} 18. exd5 {[%clk 0:02:27]}  Nxd5 {[%clk 0:02:15]} 19. c4 {[%clk 0:02:24]}  Nc3 {[%clk 0:02:06]} 20. Qxe5 {[%clk 0:02:17]}  Bf6 {[%clk 0:02:00]} 21. Qh2 {[%clk 0:02:10]}  Ne2+ {[%clk 0:01:54]} 22. Kh1 {[%clk 0:02:09]}  Bxg2+ {[%clk 0:01:18]} 23. Qxg2 {[%clk 0:02:10]}  Bxa1 {[%clk 0:01:14]} 24. Qxe2 {[%clk 0:02:10]}  Re8 {[%clk 0:01:15]} 25. Qg2 {[%clk 0:02:09]}  Rb8 {[%clk 0:01:13]} 26. g5 {[%clk 0:02:05]}  hxg5 {[%clk 0:01:10]} 27. Bxg5 {[%clk 0:02:06]}  Qc7 {[%clk 0:01:04]} 28. Bf4 {[%clk 0:01:59]}  Be5 {[%clk 0:01:01]} 29. f6 {[%clk 0:01:58]}  g6 {[%clk 0:00:58]} 30. Bg5 {[%clk 0:01:52]}  Rb1 {[%clk 0:00:53]} 31. Nf3 {[%clk 0:01:38]}  Reb8 {[%clk 0:00:46]} 32. Nxe5 {[%clk 0:01:33]}  Qxe5 {[%clk 0:00:44]} 33. Bf4 {[%clk 0:01:33]}  Qf5 {[%clk 0:00:37]} 34. Qg1 {[%clk 0:01:21]}  Qxh3+ {[%clk 0:00:26]} 0-1


[Site "https://www.chess.com"]

[Event "Titled Tuesday Blitz March 28 Late 2023"]
[White "K2JW"]
[Black "Janaszak, Dawid"]
[BlackFideId "1119206"]
[WhiteElo "2311"]
[BlackElo "2220"]
[Result "1-0"]
[Round "03"]
[TimeControl "180+2"]
[Date "2023.03.28"]
[WhiteClock "0:00:05"]
[BlackClock "0:00:25"]

1. d4 {[%clk 0:03:00]}  Nf6 {[%clk 0:02:59]} 2. c4 {[%clk 0:03:01]}  e6 {[%clk 0:02:59]} 3. Nf3 {[%clk 0:03:00]}  Bb4+ {[%clk 0:02:58]} 4. Bd2 {[%clk 0:02:59]}  Bxd2+ {[%clk 0:02:57]} 5. Qxd2 {[%clk 0:02:59]}  d5 {[%clk 0:02:58]} 6. Nc3 {[%clk 0:02:58]}  O-O {[%clk 0:02:58]} 7. e3 {[%clk 0:02:58]}  Qe7 {[%clk 0:02:53]} 8. Bd3 {[%clk 0:02:54]}  dxc4 {[%clk 0:02:53]} 9. Bxc4 {[%clk 0:02:54]}  c5 {[%clk 0:02:54]} 10. O-O {[%clk 0:02:46]}  Nc6 {[%clk 0:02:53]} 11. e4 {[%clk 0:02:22]}  cxd4 {[%clk 0:02:44]} 12. Nxd4 {[%clk 0:02:21]}  Qc5 {[%clk 0:02:35]} 13. Nxc6 {[%clk 0:02:21]}  Qxc6 {[%clk 0:02:31]} 14. Bb5 {[%clk 0:01:51]}  Qb6 {[%clk 0:02:28]} 15. e5 {[%clk 0:01:34]}  Nd5 {[%clk 0:02:27]} 16. Bd3 {[%clk 0:01:22]}  Bd7 {[%clk 0:02:19]} 17. Ne4 {[%clk 0:01:20]}  Bc6 {[%clk 0:02:12]} 18. Qg5 {[%clk 0:00:58]}  h6 {[%clk 0:02:04]} 19. Qg4 {[%clk 0:00:49]}  Kh8 {[%clk 0:01:51]} 20. Nd6 {[%clk 0:00:35]}  Qxb2 {[%clk 0:01:20]} 21. Qh5 {[%clk 0:00:28]}  Nf4 {[%clk 0:01:15]} 22. Nxf7+ {[%clk 0:00:16]}  Rxf7 {[%clk 0:01:15]} 23. Qxf7 {[%clk 0:00:16]}  Nxd3 {[%clk 0:01:15]} 24. Rad1 {[%clk 0:00:16]}  Nxe5 {[%clk 0:01:10]} 25. Qxe6 {[%clk 0:00:16]}  Re8 {[%clk 0:01:10]} 26. Qf5 {[%clk 0:00:13]}  Nc4 {[%clk 0:00:44]} 27. Rde1 {[%clk 0:00:08]}  Rg8 {[%clk 0:00:43]} 28. Qh3 {[%clk 0:00:06]}  Qf6 {[%clk 0:00:41]} 29. Re6 {[%clk 0:00:05]}  Qg5 {[%clk 0:00:40]} 30. f4 {[%clk 0:00:06]}  Qc5+ {[%clk 0:00:36]} 31. Kh1 {[%clk 0:00:06]}  Kh7 {[%clk 0:00:34]} 32. f5 {[%clk 0:00:04]}  Bd5 {[%clk 0:00:28]} 33. Rg6 {[%clk 0:00:04]}  Bf7 {[%clk 0:00:28]} 34. Rg3 {[%clk 0:00:03]}  Ne5 {[%clk 0:00:27]} 35. f6 {[%clk 0:00:04]}  Qc4 {[%clk 0:00:26]} 36. Rg1 {[%clk 0:00:03]}  Be6 {[%clk 0:00:25]} 37. Qh5 {[%clk 0:00:02]}  g6 {[%clk 0:00:25]} 38. Qxe5 {[%clk 0:00:03]}  Re8 {[%clk 0:00:22]} 39. Qf4 {[%clk 0:00:03]}  Bf7 {[%clk 0:00:23]} 40. Qxc4 {[%clk 0:00:03]}  Bxc4 {[%clk 0:00:23]} 41. Rc3 {[%clk 0:00:03]}  b5 {[%clk 0:00:24]} 42. a4 {[%clk 0:00:03]}  a6 {[%clk 0:00:23]} 43. axb5 {[%clk 0:00:04]}  axb5 {[%clk 0:00:24]} 44. Ra1 {[%clk 0:00:02]}  g5 {[%clk 0:00:23]} 45. h3 {[%clk 0:00:02]}  Kg6 {[%clk 0:00:24]} 46. Kh2 {[%clk 0:00:03]}  Kxf6 {[%clk 0:00:24]} 47. Rf3+ {[%clk 0:00:04]}  Ke5 {[%clk 0:00:24]} 48. Re1+ {[%clk 0:00:04]}  Kd4 {[%clk 0:00:24]} 49. Rxe8 {[%clk 0:00:04]}  b4 {[%clk 0:00:25]} 50. Rd8+ {[%clk 0:00:05]} 1-0


[Site "https://www.chess.com"]

[Event "Titled Tuesday Blitz March 28 Late 2023"]
[White "Garrido, Denis"]
[Black "Grebeniuk, Semen"]
[WhiteFideId "601217"]
[BlackFideId "14117509"]
[WhiteElo "2288"]
[BlackElo "2266"]
[Result "0-1"]
[Round "03"]
[TimeControl "180+2"]
[Date "2023.03.28"]
[WhiteClock "0:00:17"]
[BlackClock "0:00:36"]

1. e4 {[%clk 0:03:00]}  c5 {[%clk 0:02:58]} 2. Nf3 {[%clk 0:03:00]}  Nc6 {[%clk 0:02:58]} 3. d4 {[%clk 0:03:00]}  cxd4 {[%clk 0:02:59]} 4. Nxd4 {[%clk 0:03:01]}  g6 {[%clk 0:02:59]} 5. c4 {[%clk 0:03:00]}  Bg7 {[%clk 0:02:57]} 6. Be3 {[%clk 0:03:00]}  Nf6 {[%clk 0:02:48]} 7. Nc3 {[%clk 0:03:00]}  d6 {[%clk 0:02:48]} 8. Be2 {[%clk 0:02:59]}  Nxd4 {[%clk 0:02:48]} 9. Bxd4 {[%clk 0:02:59]}  Be6 {[%clk 0:02:48]} 10. O-O {[%clk 0:02:23]}  O-O {[%clk 0:02:48]} 11. b3 {[%clk 0:02:23]}  a6 {[%clk 0:02:45]} 12. Rc1 {[%clk 0:02:22]}  Qa5 {[%clk 0:02:43]} 13. Re1 {[%clk 0:02:10]}  Rfc8 {[%clk 0:02:42]} 14. Bf1 {[%clk 0:02:08]}  b5 {[%clk 0:02:22]} 15. cxb5 {[%clk 0:01:54]}  axb5 {[%clk 0:02:23]} 16. Qf3 {[%clk 0:01:25]}  b4 {[%clk 0:01:42]} 17. Bxf6 {[%clk 0:01:24]}  Bxf6 {[%clk 0:01:37]} 18. Nd5 {[%clk 0:01:24]}  Bxd5 {[%clk 0:01:37]} 19. exd5 {[%clk 0:01:24]}  Qxa2 {[%clk 0:01:30]} 20. Bc4 {[%clk 0:01:20]}  Qd2 {[%clk 0:01:21]} 21. Rcd1 {[%clk 0:01:16]}  Qg5 {[%clk 0:01:20]} 22. g3 {[%clk 0:01:12]}  Bc3 {[%clk 0:01:10]} 23. Re2 {[%clk 0:01:08]}  Qf6 {[%clk 0:01:04]} 24. Qg4 {[%clk 0:00:58]}  h5 {[%clk 0:01:02]} 25. Qe4 {[%clk 0:00:58]}  Ra7 {[%clk 0:00:58]} 26. h4 {[%clk 0:00:57]}  Rca8 {[%clk 0:00:53]} 27. Kg2 {[%clk 0:00:52]}  Kf8 {[%clk 0:00:53]} 28. Qe3 {[%clk 0:00:51]}  Ra2 {[%clk 0:00:49]} 29. Rxa2 {[%clk 0:00:40]}  Rxa2 {[%clk 0:00:50]} 30. Rf1 {[%clk 0:00:37]}  Kg7 {[%clk 0:00:49]} 31. Qf3 {[%clk 0:00:33]}  Bd4 {[%clk 0:00:48]} 32. Qxf6+ {[%clk 0:00:33]}  Kxf6 {[%clk 0:00:48]} 33. Kf3 {[%clk 0:00:33]}  e5 {[%clk 0:00:43]} 34. dxe6 {[%clk 0:00:31]}  fxe6 {[%clk 0:00:44]} 35. Ke4 {[%clk 0:00:23]}  Bc5 {[%clk 0:00:44]} 36. Bd3 {[%clk 0:00:20]}  Rxf2 {[%clk 0:00:41]} 37. Rxf2+ {[%clk 0:00:20]}  Bxf2 {[%clk 0:00:42]} 38. Kf3 {[%clk 0:00:21]}  Bc5 {[%clk 0:00:42]} 39. Bc4 {[%clk 0:00:21]}  d5 {[%clk 0:00:42]} 40. Bd3 {[%clk 0:00:21]}  e5 {[%clk 0:00:42]} 41. Ke2 {[%clk 0:00:22]}  e4 {[%clk 0:00:42]} 42. Bc2 {[%clk 0:00:23]}  Ke5 {[%clk 0:00:42]} 43. Bd1 {[%clk 0:00:22]}  Bd6 {[%clk 0:00:42]} 44. Kd2 {[%clk 0:00:22]}  Kd4 {[%clk 0:00:42]} 45. g4 {[%clk 0:00:22]}  Bf4+ {[%clk 0:00:37]} 46. Kc2 {[%clk 0:00:21]}  hxg4 {[%clk 0:00:35]} 47. Bxg4 {[%clk 0:00:22]}  Bg3 {[%clk 0:00:35]} 48. h5 {[%clk 0:00:21]}  gxh5 {[%clk 0:00:35]} 49. Bxh5 {[%clk 0:00:22]}  Ke3 {[%clk 0:00:36]} 50. Kd1 {[%clk 0:00:22]}  d4 {[%clk 0:00:35]} 51. Bf7 {[%clk 0:00:19]}  d3 {[%clk 0:00:34]} 52. Bg6 {[%clk 0:00:18]}  Kd4 {[%clk 0:00:35]} 53. Bh5 {[%clk 0:00:17]}  e3 {[%clk 0:00:35]} 54. Bg4 {[%clk 0:00:16]}  e2+ {[%clk 0:00:35]} 55. Bxe2 {[%clk 0:00:16]}  dxe2+ {[%clk 0:00:36]} 56. Kxe2 {[%clk 0:00:17]}  Kc3 {[%clk 0:00:36]} 0-1


[Site "https://www.chess.com"]

[Event "Titled Tuesday Blitz March 28 Late 2023"]
[White "Cori T., Deysi"]
[Black "Prieto Aranguren, Alain"]
[WhiteFideId "3801934"]
[BlackFideId "2268906"]
[WhiteElo "2292"]
[BlackElo "2209"]
[Result "1-0"]
[Round "03"]
[TimeControl "180+2"]
[Date "2023.03.28"]
[WhiteClock "0:01:02"]
[BlackClock "0:00:20"]

1. d4 {[%clk 0:02:50]}  d5 {[%clk 0:02:59]} 2. c4 {[%clk 0:02:49]}  e6 {[%clk 0:02:59]} 3. Nc3 {[%clk 0:02:49]}  Nf6 {[%clk 0:02:58]} 4. Nf3 {[%clk 0:02:49]}  Be7 {[%clk 0:02:58]} 5. Bg5 {[%clk 0:02:49]}  O-O {[%clk 0:02:57]} 6. e3 {[%clk 0:02:49]}  h6 {[%clk 0:02:53]} 7. Bh4 {[%clk 0:02:48]}  Nbd7 {[%clk 0:02:50]} 8. Qc2 {[%clk 0:02:47]}  c6 {[%clk 0:02:47]} 9. Rd1 {[%clk 0:02:45]}  Qa5 {[%clk 0:02:46]} 10. Bd3 {[%clk 0:02:42]}  dxc4 {[%clk 0:02:45]} 11. Bxc4 {[%clk 0:02:42]}  e5 {[%clk 0:02:41]} 12. O-O {[%clk 0:02:42]}  exd4 {[%clk 0:02:41]} 13. exd4 {[%clk 0:02:40]}  Nb6 {[%clk 0:02:37]} 14. Bb3 {[%clk 0:02:33]}  Bg4 {[%clk 0:02:35]} 15. Qd3 {[%clk 0:02:25]}  Qh5 {[%clk 0:02:32]} 16. Bxf6 {[%clk 0:02:14]}  Bxf6 {[%clk 0:02:27]} 17. Ne4 {[%clk 0:02:14]}  Bd8 {[%clk 0:02:19]} 18. Ng3 {[%clk 0:02:13]}  Qb5 {[%clk 0:02:07]} 19. Qe4 {[%clk 0:02:05]}  Bxf3 {[%clk 0:02:02]} 20. Qxf3 {[%clk 0:02:05]}  Nd5 {[%clk 0:01:58]} 21. Nf5 {[%clk 0:01:57]}  Bg5 {[%clk 0:01:47]} 22. h4 {[%clk 0:01:55]}  Bd8 {[%clk 0:01:32]} 23. Qg4 {[%clk 0:01:47]}  g6 {[%clk 0:01:19]} 24. h5 {[%clk 0:01:41]}  Bg5 {[%clk 0:01:12]} 25. hxg6 {[%clk 0:01:32]}  fxg6 {[%clk 0:01:10]} 26. Nd6 {[%clk 0:01:32]}  Qa5 {[%clk 0:00:34]} 27. Qe6+ {[%clk 0:01:22]}  Kg7 {[%clk 0:00:31]} 28. Qd7+ {[%clk 0:01:14]}  Kg8 {[%clk 0:00:26]} 29. Nxb7 {[%clk 0:01:13]}  Qb5 {[%clk 0:00:21]} 30. Nd6 {[%clk 0:01:10]}  Qa5 {[%clk 0:00:20]} 31. Qxc6 {[%clk 0:01:02]} 1-0


[Site "https://www.chess.com"]

[Event "Titled Tuesday Blitz March 28 Late 2023"]
[White "Mendez Fortes, Eduardo Jesus"]
[Black "Fajdetic, Hrvoje"]
[WhiteFideId "3502376"]
[BlackFideId "14501945"]
[WhiteElo "2307"]
[BlackElo "2185"]
[Result "1-0"]
[Round "03"]
[TimeControl "180+2"]
[Date "2023.03.28"]
[WhiteClock "0:01:02"]
[BlackClock "0:00:04"]

1. e4 {[%clk 0:03:00]}  c5 {[%clk 0:02:59]} 2. Nf3 {[%clk 0:03:00]}  a6 {[%clk 0:02:58]} 3. c4 {[%clk 0:03:00]}  Nc6 {[%clk 0:02:58]} 4. d4 {[%clk 0:02:59]}  cxd4 {[%clk 0:02:59]} 5. Nxd4 {[%clk 0:03:00]}  g6 {[%clk 0:02:59]} 6. Nc3 {[%clk 0:02:59]}  Bg7 {[%clk 0:02:59]} 7. Be3 {[%clk 0:02:59]}  d6 {[%clk 0:02:57]} 8. Be2 {[%clk 0:02:59]}  Nf6 {[%clk 0:02:56]} 9. O-O {[%clk 0:02:59]}  O-O {[%clk 0:02:55]} 10. Qd2 {[%clk 0:02:59]}  Nxd4 {[%clk 0:02:50]} 11. Bxd4 {[%clk 0:03:00]}  Be6 {[%clk 0:02:49]} 12. b3 {[%clk 0:02:59]}  Nd7 {[%clk 0:02:47]} 13. Be3 {[%clk 0:02:58]}  Rc8 {[%clk 0:02:45]} 14. Rac1 {[%clk 0:02:57]}  f5 {[%clk 0:02:31]} 15. exf5 {[%clk 0:02:57]}  Bxf5 {[%clk 0:02:29]} 16. Bf3 {[%clk 0:02:57]}  Rb8 {[%clk 0:01:56]} 17. Ba7 {[%clk 0:02:54]}  Ne5 {[%clk 0:01:44]} 18. Bd5+ {[%clk 0:02:52]}  e6 {[%clk 0:01:44]} 19. Bxb8 {[%clk 0:02:48]}  Qxb8 {[%clk 0:01:39]} 20. Be4 {[%clk 0:02:46]}  d5 {[%clk 0:01:21]} 21. cxd5 {[%clk 0:02:39]}  Ng4 {[%clk 0:01:21]} 22. g3 {[%clk 0:02:22]}  Bxc3 {[%clk 0:01:12]} 23. Rxc3 {[%clk 0:02:04]}  Bxe4 {[%clk 0:01:12]} 24. Qe2 {[%clk 0:01:50]}  Bf5 {[%clk 0:01:00]} 25. dxe6 {[%clk 0:01:48]}  Re8 {[%clk 0:00:53]} 26. e7 {[%clk 0:01:47]}  Qd6 {[%clk 0:00:28]} 27. Re1 {[%clk 0:01:43]}  Nf6 {[%clk 0:00:26]} 28. Re3 {[%clk 0:01:33]}  h5 {[%clk 0:00:23]} 29. Rd1 {[%clk 0:01:26]}  Qc7 {[%clk 0:00:18]} 30. f3 {[%clk 0:01:10]}  Kf7 {[%clk 0:00:13]} 31. Re1 {[%clk 0:01:10]}  Qc5 {[%clk 0:00:10]} 32. Kg2 {[%clk 0:01:07]}  b5 {[%clk 0:00:07]} 33. Re5 {[%clk 0:01:07]}  Qc6 {[%clk 0:00:06]} 34. Qe3 {[%clk 0:01:06]}  Ng4 {[%clk 0:00:05]} 35. Rxf5+ {[%clk 0:01:02]}  gxf5 {[%clk 0:00:04]} 36. Qg5 {[%clk 0:01:02]} 1-0


[Site "https://www.chess.com"]

[Event "Titled Tuesday Blitz March 28 Late 2023"]
[White "Napoli, Nicolo"]
[Black "Belov, Alexei"]
[WhiteFideId "813702"]
[BlackFideId "4128206"]
[WhiteElo "2308"]
[BlackElo "2541"]
[Result "1-0"]
[Round "03"]
[TimeControl "180+2"]
[Date "2023.03.28"]
[WhiteClock "0:01:54"]
[BlackClock "0:01:44"]

1. e4 {[%clk 0:02:57]}  e6 {[%clk 0:03:00]} 2. d4 {[%clk 0:02:55]}  d5 {[%clk 0:03:00]} 3. Nc3 {[%clk 0:02:56]}  Nf6 {[%clk 0:03:00]} 4. Bg5 {[%clk 0:02:56]}  dxe4 {[%clk 0:03:00]} 5. Nxe4 {[%clk 0:02:57]}  Be7 {[%clk 0:03:00]} 6. Bxf6 {[%clk 0:02:57]}  Bxf6 {[%clk 0:03:01]} 7. Nf3 {[%clk 0:02:57]}  O-O {[%clk 0:03:00]} 8. Bd3 {[%clk 0:02:57]}  Bxd4 {[%clk 0:03:00]} 9. c3 {[%clk 0:02:57]}  Bb6 {[%clk 0:03:00]} 10. Qc2 {[%clk 0:02:57]}  f5 {[%clk 0:03:00]} 11. Neg5 {[%clk 0:02:51]}  h6 {[%clk 0:02:59]} 12. O-O-O {[%clk 0:02:36]}  Qf6 {[%clk 0:02:58]} 13. h4 {[%clk 0:02:35]}  Nd7 {[%clk 0:02:55]} 14. Rde1 {[%clk 0:02:17]}  Nc5 {[%clk 0:02:51]} 15. Bc4 {[%clk 0:02:17]}  hxg5 {[%clk 0:02:48]} 16. hxg5 {[%clk 0:02:18]}  Qg6 {[%clk 0:02:45]} 17. Rh4 {[%clk 0:02:06]}  Ne4 {[%clk 0:02:36]} 18. Reh1 {[%clk 0:02:05]}  Bd7 {[%clk 0:01:44]} 19. Rh8+ {[%clk 0:02:03]}  Kf7 {[%clk 0:01:44]} 20. Ne5+ {[%clk 0:02:04]}  Ke7 {[%clk 0:01:44]} 21. Nxg6+ {[%clk 0:02:03]}  Kd6 {[%clk 0:01:44]} 22. Qd3+ {[%clk 0:01:54]} 1-0


[Site "https://www.chess.com"]

[Event "Titled Tuesday Blitz March 28 Late 2023"]
[White "Dobre, Claudiu-Cristian"]
[Black "Bullen, Alex"]
[WhiteFideId "1211854"]
[BlackFideId "1801627"]
[WhiteElo "2207"]
[BlackElo "2088"]
[Result "1-0"]
[Round "03"]
[TimeControl "180+2"]
[Date "2023.03.28"]
[WhiteClock "0:00:15"]
[BlackClock "0:00:01"]

1. e4 {[%clk 0:03:00]}  c6 {[%clk 0:02:59]} 2. Nf3 {[%clk 0:03:00]}  d5 {[%clk 0:03:00]} 3. exd5 {[%clk 0:03:00]}  cxd5 {[%clk 0:03:00]} 4. Ne5 {[%clk 0:03:01]}  Nc6 {[%clk 0:02:56]} 5. d4 {[%clk 0:03:00]}  g6 {[%clk 0:02:49]} 6. Bb5 {[%clk 0:02:59]}  Bd7 {[%clk 0:02:49]} 7. Nxd7 {[%clk 0:02:55]}  Qxd7 {[%clk 0:02:49]} 8. c3 {[%clk 0:02:52]}  Nf6 {[%clk 0:02:37]} 9. Nd2 {[%clk 0:02:51]}  Bg7 {[%clk 0:02:31]} 10. Nf3 {[%clk 0:02:51]}  a6 {[%clk 0:01:55]} 11. Ne5 {[%clk 0:02:37]}  Qe6 {[%clk 0:01:51]} 12. Bxc6+ {[%clk 0:02:37]}  bxc6 {[%clk 0:01:50]} 13. O-O {[%clk 0:02:37]}  Nd7 {[%clk 0:01:44]} 14. Nd3 {[%clk 0:02:37]}  O-O {[%clk 0:01:11]} 15. b3 {[%clk 0:01:12]}  Rfe8 {[%clk 0:01:06]} 16. Ba3 {[%clk 0:01:11]}  Qf5 {[%clk 0:00:58]} 17. f4 {[%clk 0:00:57]}  Nf6 {[%clk 0:00:52]} 18. Ne5 {[%clk 0:00:52]}  Rac8 {[%clk 0:00:38]} 19. Qe2 {[%clk 0:00:45]}  Ne4 {[%clk 0:00:37]} 20. Rac1 {[%clk 0:00:37]}  f6 {[%clk 0:00:31]} 21. g4 {[%clk 0:00:33]}  Qe6 {[%clk 0:00:27]} 22. f5 {[%clk 0:00:33]}  gxf5 {[%clk 0:00:15]} 23. gxf5 {[%clk 0:00:33]}  fxe5 {[%clk 0:00:06]} 24. fxe6 {[%clk 0:00:33]}  Kh8 {[%clk 0:00:02]} 25. c4 {[%clk 0:00:28]}  Bh6 {[%clk 0:00:02]} 26. cxd5 {[%clk 0:00:24]}  Rg8+ {[%clk 0:00:02]} 27. Kh1 {[%clk 0:00:24]}  Bxc1 {[%clk 0:00:02]} 28. Rxc1 {[%clk 0:00:24]}  cxd5 {[%clk 0:00:02]} 29. Rxc8 {[%clk 0:00:16]}  Rxc8 {[%clk 0:00:03]} 30. Bxe7 {[%clk 0:00:15]}  Rc1+ {[%clk 0:00:01]} 31. Kg2 {[%clk 0:00:15]} 1-0


[Site "https://www.chess.com"]

[Event "Titled Tuesday Blitz March 28 Late 2023"]
[White "Kornyukov, Alexey"]
[Black "Chylewski, Patryk"]
[WhiteFideId "4150457"]
[BlackFideId "1186191"]
[WhiteElo "2352"]
[BlackElo "2163"]
[Result "0-1"]
[Round "03"]
[TimeControl "180+2"]
[Date "2023.03.28"]
[WhiteClock "0:00:11"]
[BlackClock "0:01:06"]

1. d4 {[%clk 0:03:00]}  Nf6 {[%clk 0:02:59]} 2. c4 {[%clk 0:03:01]}  e6 {[%clk 0:02:58]} 3. Nc3 {[%clk 0:03:00]}  Bb4 {[%clk 0:02:58]} 4. f3 {[%clk 0:03:00]}  c5 {[%clk 0:02:56]} 5. d5 {[%clk 0:02:57]}  b5 {[%clk 0:02:53]} 6. e4 {[%clk 0:02:52]}  O-O {[%clk 0:02:51]} 7. e5 {[%clk 0:02:45]}  Ne8 {[%clk 0:02:46]} 8. f4 {[%clk 0:02:42]}  d6 {[%clk 0:02:45]} 9. Nf3 {[%clk 0:02:38]}  dxe5 {[%clk 0:02:37]} 10. fxe5 {[%clk 0:02:32]}  Bb7 {[%clk 0:02:31]} 11. d6 {[%clk 0:01:33]}  f6 {[%clk 0:02:21]} 12. exf6 {[%clk 0:00:54]}  Qxf6 {[%clk 0:02:08]} 13. d7 {[%clk 0:00:30]}  Nxd7 {[%clk 0:01:26]} 14. Be2 {[%clk 0:00:29]}  Rd8 {[%clk 0:01:12]} 15. Bg5 {[%clk 0:00:19]}  Bxc3+ {[%clk 0:01:08]} 16. Kf1 {[%clk 0:00:19]}  Qxg5 {[%clk 0:01:06]} 17. bxc3 {[%clk 0:00:18]}  Ne5 {[%clk 0:01:06]} 18. Qc1 {[%clk 0:00:11]} 0-1


[Site "https://www.chess.com"]

[Event "Titled Tuesday Blitz March 28 Late 2023"]
[White "Ahn, Hongjin"]
[Black "Buchenau, Frank"]
[WhiteFideId "13201492"]
[BlackFideId "4604350"]
[WhiteElo "2182"]
[BlackElo "2157"]
[Result "1-0"]
[Round "03"]
[TimeControl "180+2"]
[Date "2023.03.28"]
[WhiteClock "0:01:13"]
[BlackClock "0:00:01"]

1. b3 {[%clk 0:02:59]}  d5 {[%clk 0:02:49]} 2. Bb2 {[%clk 0:03:00]}  Nf6 {[%clk 0:02:46]} 3. g3 {[%clk 0:03:01]}  Bg4 {[%clk 0:02:45]} 4. Bg2 {[%clk 0:03:01]}  c6 {[%clk 0:02:11]} 5. Nf3 {[%clk 0:03:01]}  Nbd7 {[%clk 0:02:09]} 6. O-O {[%clk 0:03:00]}  h6 {[%clk 0:02:08]} 7. c4 {[%clk 0:03:00]}  e6 {[%clk 0:02:08]} 8. d3 {[%clk 0:03:01]}  Be7 {[%clk 0:02:05]} 9. Nbd2 {[%clk 0:03:01]}  O-O {[%clk 0:02:04]} 10. Qc2 {[%clk 0:03:02]}  Bf5 {[%clk 0:01:59]} 11. e4 {[%clk 0:03:01]}  Bh7 {[%clk 0:01:52]} 12. e5 {[%clk 0:03:01]}  Ne8 {[%clk 0:01:51]} 13. Rad1 {[%clk 0:02:58]}  Nc7 {[%clk 0:01:49]} 14. Nb1 {[%clk 0:02:56]}  a5 {[%clk 0:01:41]} 15. Rfe1 {[%clk 0:02:56]}  a4 {[%clk 0:01:38]} 16. Qc1 {[%clk 0:02:55]}  axb3 {[%clk 0:01:35]} 17. axb3 {[%clk 0:02:56]}  Nc5 {[%clk 0:01:33]} 18. Qc3 {[%clk 0:02:51]}  N5a6 {[%clk 0:01:25]} 19. Ba3 {[%clk 0:02:44]}  Bxa3 {[%clk 0:01:20]} 20. Nxa3 {[%clk 0:02:45]}  Qe7 {[%clk 0:01:17]} 21. Nc2 {[%clk 0:02:44]}  Rfd8 {[%clk 0:00:31]} 22. Ne3 {[%clk 0:02:29]}  Qb4 {[%clk 0:00:26]} 23. Qb2 {[%clk 0:02:25]}  Nc5 {[%clk 0:00:21]} 24. Bf1 {[%clk 0:01:45]}  Qxb3 {[%clk 0:00:18]} 25. Qc1 {[%clk 0:01:34]}  Ra2 {[%clk 0:00:13]} 26. cxd5 {[%clk 0:01:31]}  Na4 {[%clk 0:00:08]} 27. d6 {[%clk 0:01:26]}  Nd5 {[%clk 0:00:08]} 28. Nxd5 {[%clk 0:01:23]}  Qxd5 {[%clk 0:00:08]} 29. Bg2 {[%clk 0:01:23]}  Qb5 {[%clk 0:00:03]} 30. Nd4 {[%clk 0:01:19]}  Qb6 {[%clk 0:00:03]} 31. Qc4 {[%clk 0:01:16]}  Nb2 {[%clk 0:00:01]} 32. Qxa2 {[%clk 0:01:14]}  Nxd1 {[%clk 0:00:01]} 33. Nxe6 {[%clk 0:01:13]} 1-0


[Site "https://www.chess.com"]